fUSD/lending_fUSD_20241226
["ID","MTS","AMOUNT","RATE_DAILY","PERIOD"]
[346701646,1735209042988,-37974.47265764,0.00018,4]
[346701649,1735209043147,-224.46101413,0.00018,10]
[346701651,1735209043158,-5042.31981,0.00018,30]
[346701652,1735209043167,-148369.07380196,0.00018,2]
[346701653,1735209043180,-17209.19829721,0.00018,2]
[346701654,1735209043191,-963.19752,0.00018,2]
[346701655,1735209045026,-1854.36,0.0001783,2]
[346701656,1735209045036,-1854.36,0.0001788,2]
[346701657,1735209045045,-1854.36,0.000179,2]
[346701658,1735209045055,-1854.36,0.0001792,2]
[346701659,1735209045064,-44127.79525759,0.00018,2]
[346701660,1735209045076,-677.88982286,0.00018,2]
[346701661,1735209045104,-33046.09218754,0.00018,2]
[346701662,1735209045114,-1132.94585392,0.00018,2]
[346701663,1735209045124,-5621.64589234,0.00018,2]
[346701664,1735209045133,-1031.22912875,0.00018,2]
[346701665,1735209045144,-1000.0,0.00018,2]
[346701666,1735209045153,-1000.0,0.00018,3]
[346701667,1735209045163,-1324.49412477,0.00018,5]
[346701668,1735209045173,-3600.0,0.00018,19]
[346701669,1735209045183,-6301.79233906,0.00018,14]
[346701670,1735209045194,-30048.26254725,0.00018,2]
[346701671,1735209045205,-600.66435239,0.00018,2]
[346701672,1735209045216,-90588.8321946,0.00018,2]
[346701673,1735209045225,-40966.40933279,0.00018,2]
[346701674,1735209045235,-12397.92067829,0.00018,2]
[346701675,1735209045244,-637.0,0.00018,2]
[346701676,1735209045255,-11187.17334271,0.00018,5]
[346701677,1735209045264,-372097.78182732,0.00018,2]
[346701678,1735209045276,-778017.86952723,0.00018,2]
[346701679,1735209045287,-151.0,0.00018,2]
[346701680,1735209045296,-151.0,0.00018,2]
[346701681,1735209045306,-151.0,0.00018,2]
[346701682,1735209045317,-151.0,0.00018,2]
[346701683,1735209045326,-151.0,0.00018,2]
[346701684,1735209045336,-151.0,0.00018,2]
[346701685,1735209045345,-151.0,0.00018,2]
[346701686,1735209045355,-151.0,0.00018,2]
[346701687,1735209045364,-151.0,0.00018,2]
[346701688,1735209045373,-151.0,0.00018,2]
[346701689,1735209045383,-151.0,0.00018,2]
[346701690,1735209045392,-151.0,0.00018,2]
[346701691,1735209045402,-208.18,0.00018,2]
[346701692,1735209045411,-208.18,0.00018,2]
[346701693,1735209045423,-208.18,0.00018,2]
[346701694,1735209045432,-208.18,0.00018,2]
[346701695,1735209045441,-208.18,0.00018,2]
[346701696,1735209045451,-208.18,0.00018,2]
[346701697,1735209045460,-23599.32867649,0.00018,2]
[346701698,1735209045470,-151.0,0.00018,2]
[346701699,1735209045479,-151.0,0.00018,2]
[346701700,1735209045488,-823.070173,0.00018,2]
[346701701,1735209045498,-823.070173,0.00018,2]
[346701702,1735209045507,-823.070173,0.00018,2]
[346701703,1735209045516,-151.0,0.00018,2]
[346701704,1735209045529,-151.0,0.00018,2]
[346701705,1735209045539,-823.070173,0.00018,2]
[346701707,1735209045549,-151.0,0.00018,2]
[346701709,1735209045558,-823.070173,0.00018,2]
[346701710,1735209045569,-823.070173,0.00018,2]
[346701712,1735209045579,-258.196474,0.00018,2]
[346701713,1735209045589,-258.196474,0.00018,2]
[346701715,1735209045599,-258.196474,0.00018,2]
[346701717,1735209045608,-1854.36,0.00018,2]
[346701718,1735209045617,-258.196474,0.00018,2]
[346701720,1735209045626,-258.196474,0.00018,2]
[346701721,1735209045635,-1854.36,0.00018,2]
[346701723,1735209045645,-258.196474,0.00018,2]
[346701725,1735209045654,-1854.36,0.00018,2]
[346701727,1735209045663,-1854.36,0.00018,2]
[346701728,1735209045672,-1854.36,0.00018,2]
[346701730,1735209045681,-699.28,0.0001809,2]
[346701731,1735209045691,-1694.7021549,0.000181,2]
[346701732,1735209045700,-606.05,0.00018155,2]
[346701733,1735209045709,-618.24902125,0.00018174,2]
[346701734,1735209045720,-1968.0,0.00018174,2]
[346701735,1735209045729,-1241.0,0.00018174,2]
[346701736,1735209045739,-5068.0,0.000182,2]
[346701737,1735209045748,-300.0,0.00018212,2]
[346701738,1735209045758,-152.0,0.00018223,10]
[346701739,1735209045767,-5076.51,0.00018235,7]
[346701740,1735209045777,-5076.51,0.00018235,7]
[346701741,1735209045786,-10000.0,0.000183,2]
[346701742,1735209045796,-597381.86804226,0.000183,2]
[346701743,1735209045820,-4778.897432,0.000183,2]
[346701744,1735209045831,-6409.38740927,0.000183,2]
[346701745,1735209045842,-1078.88186558,0.000183,2]
[346701746,1735209045853,-535.0,0.000183,2]
[346701747,1735209045864,-1911.65568,0.000183,2]
[346701748,1735209045875,-297.9250269,0.000183,2]
[346701752,1735209046794,-853.0,0.00017791,2]
[346701753,1735209046804,-1854.36,0.00018,2]
[346701754,1735209046814,-503.991183,0.00018,2]
[346701755,1735209046823,-1850.45497212,0.000183,2]
[346701756,1735209046834,-22008.52176386,0.000183,2]
[346701757,1735209046846,-44157.323556,0.000183,2]
[346701758,1735209046858,-16989.03826287,0.000183,2]
[346701759,1735209046867,-151.0,0.000183,2]
[346701760,1735209046877,-151.0,0.000183,2]
[346701761,1735209046889,-151.0,0.000183,2]
[346701762,1735209046898,-288.890927,0.000183,2]
[346701763,1735209046908,-208.18,0.000183,2]
[346701764,1735209046918,-208.18,0.000183,2]
[346701765,1735209046927,-823.070173,0.000183,2]
[346701766,1735209046936,-151.0,0.000183,2]
[346701767,1735209046945,-823.070173,0.000183,2]
[346701768,1735209046955,-258.196474,0.000183,2]
[346701769,1735209046964,-258.196474,0.000183,2]
[346701770,1735209046976,-1854.36,0.000183,2]
[346701771,1735209046985,-1854.36,0.000183,2]
[346701772,1735209046994,-9134.06451071,0.00018356,2]
[346701773,1735209047012,-33990.00000011,0.00018356,2]
[346701774,1735209047024,-477.477,0.00018356,2]
[346701775,1735209047047,-554.05873462,0.00018356,2]
[346701776,1735209047058,-38049.09975456,0.00018356,2]
[346701777,1735209047067,-500.0,0.00018364,2]
[346701778,1735209047076,-400.0,0.0001837,2]
[346701779,1735209047086,-300.0,0.0001837,2]
[346701780,1735209047095,-5000.0,0.000184,2]
[346701781,1735209047104,-2035.0,0.00018431,2]
[346701782,1735209047113,-1968.0,0.00018448,2]
[346701783,1735209047123,-1241.0,0.00018448,2]
[346701784,1735209047132,-250.0,0.00018458,2]
[346701785,1735209047141,-328.43,0.00018459,2]
[346701786,1735209047151,-152.0,0.0001849,11]
[346701787,1735209047160,-5000.0,0.000185,2]
[346701788,1735209047169,-5076.51,0.00018508,7]
[346701789,1735209047178,-5076.51,0.00018508,7]
[346701790,1735209047187,-5924.05444452,0.00018517,2]
[346701791,1735209047196,-1000.0,0.00018521,2]
[346701792,1735209047205,-1000.0,0.00018521,2]
[346701793,1735209047214,-500.0,0.00018521,2]
[346701794,1735209047224,-584.05,0.00018549,2]
[346701795,1735209047234,-5000.0,0.000186,2]
[346701796,1735209047243,-194.68,0.000186,2]
[346701797,1735209047251,-2035.0,0.00018621,2]
[346701798,1735209047261,-734.45,0.00018644,2]
[346701799,1735209047271,-5000.0,0.000187,2]
[346701800,1735209047280,-1968.0,0.00018722,2]
[346701801,1735209047291,-1241.0,0.00018722,2]
[346701802,1735209047300,-152.0,0.00018757,12]
[346701803,1735209047309,-5076.51,0.00018781,7]
[346701804,1735209047318,-5076.51,0.00018781,7]
[346701805,1735209047328,-16759.6272847,0.000188,2]
[346701806,1735209047337,-3009.11780477,0.000188,2]
[346701807,1735209047347,-151.0,0.000188,2]
[346701808,1735209047355,-2035.0,0.00018811,2]
[346701809,1735209047366,-71622.27726195,0.00018855,2]
[346701888,1735210232071,-200.147987,0.00010035,2]
[346701889,1735210232081,-166.96,0.00010137,2]
[346701890,1735210232091,-256.56,0.00010137,2]
[346701891,1735210232100,-326.163363,0.00010138,2]
[346701892,1735210232118,-28.61555336,0.00010138,2]
[346701893,1735210232128,-300.0,0.00010237,2]
[346701894,1735210232138,-104.06844664,0.00010238,2]
[346701895,1735210232149,-480.15338973,0.00010238,2]
[346701896,1735210232183,-6236.77816363,0.00010238,2]
[346701897,1735210232192,-3410.0,0.00010238,2]
[346701898,1735210232201,-3410.0,0.00010238,2]
[346701899,1735210232210,-3410.0,0.00010238,2]
[346701900,1735210232220,-3410.0,0.00010238,2]
[346701901,1735210232229,-246.0,0.00011258,2]
[346701902,1735210232240,-169.97,0.00013699,2]
[346701903,1735210232250,-700.0,0.00013923,2]
[346701904,1735210232260,-500.0,0.00015019,2]
[346701905,1735210232270,-513.1182,0.00015193,2]
[346701906,1735210232279,-644.34,0.00015258,2]
[346701907,1735210232288,-700.0,0.00015293,2]
[346701908,1735210232297,-150.0,0.000155,2]
[346701909,1735210232307,-151.0,0.0001585,2]
[346701910,1735210232317,-245.08,0.00016652,2]
[346701911,1735210232327,-700.0,0.00016663,2]
[346701912,1735210232337,-186.74,0.00016712,2]
[346701913,1735210232346,-200.0,0.00016759,2]
[346701914,1735210232355,-250.0,0.00016793,2]
[346701915,1735210232365,-250.0,0.00016831,2]
[346701917,1735210232374,-247.48,0.0001697,2]
[346701918,1735210232384,-4342.59641833,0.00017057,2]
[346701919,1735210232396,-4871.65332767,0.00017057,2]
[346701920,1735210232408,-273.630254,0.00017057,2]
[346701921,1735210232417,-200.0,0.00017078,2]
[346701922,1735210232427,-6381.42955573,0.00017107,2]
[346701923,1735210232438,-5901.99961991,0.00017107,2]
[346701935,1735210238078,-433.84973513,0.00017107,2]
[346701936,1735210238089,-427.5662391,0.00017107,2]
[346701937,1735210238169,-10000.94517856,0.00017107,2]
[346701938,1735210238237,-754.20967157,0.00017107,2]
[346701939,1735210238247,-4000.0,0.00017258,2]
[346701940,1735210238257,-150.06,0.00017332,30]
[346701941,1735210238267,-186.74935668,0.00017412,2]
[346701942,1735210238277,-1000.0,0.00017452,2]
[346701943,1735210238286,-40255.78855274,0.000175,2]
[346701944,1735210238298,-1254.9366222,0.000175,2]
[346701945,1735210238307,-166.72,0.00017512,2]
[346701946,1735210238317,-644.34,0.00017522,2]
[346701948,1735210238326,-169.97,0.00017534,2]
[346701949,1735210238335,-220.0,0.00017588,2]
[346701951,1735210238344,-793.45437544,0.00017588,2]
[346701954,1735210238355,-1325.73242456,0.00017588,2]
[346701957,1735210238364,-447.77,0.00017697,2]
[346701959,1735210238374,-500.0,0.00017759,2]
[346701961,1735210238383,-700.0,0.00017759,2]
[346701963,1735210238392,-250.0,0.00017878,2]
[346701965,1735210238401,-136.60085066,0.0001792,2]
[346701967,1735210238412,-223.57614934,0.0001792,2]
[346701969,1735210238421,-1793.238,0.0001792,2]
[346701971,1735210238431,-190.80139639,0.0001792,2]
[346701973,1735210238440,-812.07940064,0.00018,2]
[346701975,1735210238449,-500.0,0.0001818,2]
[346701977,1735210238458,-200.0,0.00018371,2]
[346701979,1735210238469,-1963.0,0.00018431,2]
[346701981,1735210238478,-300.0,0.0001847,2]
[346701983,1735210238487,-194.68,0.000186,2]
[346701985,1735210238496,-894.70761844,0.00018617,2]
[346701987,1735210238508,-1591.04816277,0.00018617,2]
[346701989,1735210238518,-1963.0,0.00018621,2]
[346701991,1735210238527,-245.08,0.00018734,2]
[346701993,1735210238536,-287.9718038,0.000188,2]
[346701995,1735210238545,-200.0,0.000188,6]
[346701997,1735210238555,-3066.05667258,0.0001881,2]
[346701999,1735210238566,-27449.94332742,0.0001881,2]
[346702000,1735210238575,-1963.0,0.00018811,2]
[346702001,1735210238585,-2949.99644952,0.00018855,2]
[346702002,1735210238594,-700.0,0.00018855,2]
[346702003,1735210238603,-3000.0,0.00018855,2]
[346702004,1735210238612,-5000.0,0.000189,2]
[346702005,1735210238622,-7603.28192634,0.000189,2]
[346702006,1735210238632,-25522.24224805,0.000189,2]
[346702007,1735210238641,-21459.53604867,0.000189,2]
[346702008,1735210238704,-1641.99411416,0.000189,2]
[346702009,1735210238719,-4687.92071993,0.000189,2]
[346702010,1735210238730,-2259.79777583,0.000189,2]
[346702011,1735210238742,-4033.80000002,0.000189,2]
[346702012,1735210238753,-427.7836077,0.000189,2]
[346702020,1735210240019,-10315.62754822,0.000189,2]
[346702021,1735210240030,-14482.8192638,0.000189,2]
[346702022,1735210240040,-3072.59,0.000189,31]
[346702023,1735210240050,-3072.59,0.000189,31]
[346702024,1735210240059,-2173.14719998,0.000189,31]
[346702025,1735210240070,-899.44280002,0.000189,31]
[346702026,1735210240080,-3072.59,0.000189,31]
[346702027,1735210240090,-3072.59,0.000189,31]
[346702028,1735210240099,-3072.59,0.000189,31]
[346702029,1735210240109,-3072.59,0.000189,31]
[346702030,1735210240118,-3072.59,0.000189,31]
[346702031,1735210240128,-614.9945999,0.000189,31]
[346702032,1735210240139,-2457.5954001,0.000189,31]
[346702033,1735210240149,-3072.59,0.000189,31]
[346702034,1735210240158,-3072.59,0.000189,31]
[346702035,1735210240168,-3072.59,0.000189,31]
[346702036,1735210240420,-3072.59,0.000189,31]
[346702037,1735210240430,-3072.59,0.000189,31]
[346702038,1735210240440,-3072.59,0.000189,31]
[346702039,1735210240449,-3072.59,0.000189,31]
[346702040,1735210240458,-500.0,0.000189,6]
[346702042,1735210240468,-170.06627709,0.000189,2]
[346702044,1735210240477,-207.3598693,0.000189,2]
[346702046,1735210240487,-159.54026232,0.00018973,2]
[346702047,1735210240495,-500.0,0.00018973,2]
[346702049,1735210240504,-4355.33750608,0.0001898,10]
[346702051,1735210240516,-455.549915,0.0001898,10]
[346702058,1735210240578,-3630.11257892,0.0001898,10]
[346702060,1735210240587,-818.0,0.00019,2]
[346702062,1735210240596,-278.96879046,0.00019,4]
[346702064,1735210240605,-22508.15831991,0.00019,2]
[346702066,1735210240614,-20503.26031071,0.00019,2]
[346702083,1735210240770,-11827.99578242,0.00019,2]
[346702085,1735210240779,-4544.80991084,0.00019,2]
[346702087,1735210240788,-417.17,0.00019,2]
[346702089,1735210240797,-100756.98384049,0.00019,2]
[346702091,1735210240806,-3600.0,0.00019,20]
[346702093,1735210240815,-7719.0,0.00019,2]
[346702095,1735210240825,-600.0,0.00019,5]
[346702097,1735210240835,-264.8043209,0.00019,2]
[346702099,1735210240844,-10000.0,0.00019,2]
[346702101,1735210240853,-10000.0,0.00019,2]
[346702103,1735210240862,-10000.0,0.00019,2]
[346702105,1735210240871,-10000.0,0.00019,2]
[346702107,1735210240881,-10000.0,0.00019,2]
[346702109,1735210240890,-10000.0,0.00019,2]
[346702111,1735210240899,-735.0,0.00019,4]
[346702113,1735210240908,-10000.0,0.00019,2]
[346702114,1735210240918,-160.0,0.00019,15]
[346702116,1735210240927,-10000.0,0.00019,2]
[346702118,1735210240937,-25000.0,0.00019,2]
[346702120,1735210240952,-10000.0,0.00019,2]
[346702122,1735210240961,-10000.0,0.00019,2]
[346702124,1735210240971,-53393.60025843,0.00019,2]
[346702126,1735210240980,-128472.86044435,0.00019,2]
[346702128,1735210240990,-961.61,0.00019,2]
[346702130,1735210240999,-30000.0,0.00019,2]
[346702132,1735210241008,-3996.97478777,0.00019,2]
[346702333,1735210243064,-324.686543,0.000188,2]
[346702334,1735210243076,-384.8,0.000188,2]
[346702335,1735210243121,-1536.692557,0.000188,2]
[346702336,1735210243131,-12343.85091325,0.00019,2]
[346702337,1735210243174,-917.31125957,0.00019,2]
[346702338,1735210243186,-2559.86854406,0.00019,2]
[346702340,1735210243229,-8029.09884256,0.00019,2]
[346702351,1735210243505,-910.9099972,0.00019,2]
[346702353,1735210245886,-1241.98565559,0.00019,2]
[346702354,1735210245896,-3723.91434391,0.00019,2]
[346702360,1735210246399,-2996.61865781,0.00019,2]
[346702361,1735210246422,-13444.53837763,0.00019,2]
[346702362,1735210246433,-2371.2957635,0.00019,2]
[346702363,1735210246444,-755.60676301,0.00019,2]
[346702364,1735210246482,-6708.02609414,0.00019,2]
[346702365,1735210246491,-13336.12501805,0.00019,2]
[346702366,1735210246502,-9079.55488623,0.00019,2]
[346702491,1735211432531,-200.06,0.00010137,2]
[346702492,1735211432540,-417.38749484,0.000129,2]
[346702493,1735211432551,-450.0,0.00013,2]
[346702494,1735211432560,-500.0,0.00013,2]
[346702495,1735211432570,-500.0,0.00013,2]
[346702496,1735211432579,-500.0,0.00013,2]
[346702497,1735211432588,-500.0,0.00013,2]
[346702498,1735211432598,-450.0,0.00013,2]
[346702499,1735211432607,-500.0,0.00013,2]
[346702501,1735211432616,-381.02272983,0.00013548,2]
[346702503,1735211432625,-617.0,0.00013671,2]
[346702505,1735211432634,-169.97,0.00013699,2]
[346702507,1735211432643,-421.7541258,0.00014591,2]
[346702512,1735211432783,-158.1458742,0.00014591,2]
[346702514,1735211432793,-417.38749482,0.00014997,2]
[346702516,1735211432802,-500.0,0.00015,2]
[346702518,1735211432811,-200.0,0.000151,2]
[346702520,1735211432820,-500.0,0.00015164,2]
[346702522,1735211432830,-500.0,0.00015164,2]
[346702524,1735211432839,-150.0,0.000155,2]
[346702526,1735211432849,-174.91817138,0.00015863,2]
[346702528,1735211432858,-2000.0,0.00016,2]
[346702530,1735211432867,-2000.0,0.0001601,2]
[346702531,1735211432877,-3678.41474,0.0001602,2]
[346702533,1735211432886,-300.0,0.000164,2]
[346702536,1735211432896,-166.72,0.00016459,2]
[346702538,1735211432905,-250.0,0.00016482,2]
[346702539,1735211432914,-500.0,0.00016534,2]
[346702541,1735211432923,-4000.0,0.00016571,2]
[346702543,1735211432932,-247.48,0.00016596,2]
[346702545,1735211432942,-250.0,0.00016637,2]
[346702546,1735211432951,-358.21,0.00016661,2]
[346702547,1735211432960,-186.74,0.00016712,2]
[346702548,1735211432970,-200.06,0.00016813,2]
[346702549,1735211432979,-579.9,0.00016855,2]
[346702550,1735211432988,-200.0,0.00016898,2]
[346702551,1735211432999,-550.0,0.00017,2]
[346702552,1735211433008,-23900.0,0.00017063,2]
[346702553,1735211433018,-417.38749482,0.00017093,2]
[346702554,1735211433028,-168.14,0.00017193,2]
[346702555,1735211433037,-1000.0,0.00017381,2]
[346702556,1735211433047,-500.0,0.0001763,2]
[346702557,1735211433057,-1591.43641505,0.00017728,2]
[346702558,1735211438327,-1893.96495137,0.00017728,2]
[346702559,1735211438338,-2849.55446521,0.00017728,2]
[346702560,1735211438349,-11873.82782395,0.00017728,2]
[346702561,1735211438363,-4973.07634442,0.00017728,2]
[346702562,1735211438374,-400.0,0.000178,2]
[346702563,1735211438383,-150.0,0.00017803,2]
[346702564,1735211438393,-150.0,0.00017803,2]
[346702565,1735211438403,-333.37843426,0.00017904,2]
[346702566,1735211438413,-345.213,0.0001805,2]
[346702567,1735211438422,-25795.0,0.00018069,2]
[346702568,1735211438431,-265.1832,0.00018151,2]
[346702569,1735211438441,-150.0,0.00018198,2]
[346702570,1735211438450,-500.0,0.00018252,2]
[346702571,1735211438460,-200.0,0.00018332,2]
[346702572,1735211438470,-150.06,0.00018361,30]
[346702573,1735211438479,-1894.0,0.00018431,2]
[346702574,1735211438488,-150.0,0.00018594,2]
[346702575,1735211438498,-194.69,0.000186,2]
[346702576,1735211438508,-1894.0,0.00018621,2]
[346702577,1735211438518,-500.0,0.00018726,2]
[346702578,1735211438527,-358.21,0.00018743,2]
[346702579,1735211438537,-300.0,0.00018786,2]
[346702580,1735211438546,-1000.0,0.000188,2]
[346702581,1735211438556,-1894.0,0.00018811,2]
[346702582,1735211438566,-7517.19203209,0.00018888,2]
[346702583,1735211438579,-396.34001336,0.00018888,2]
[346702584,1735211438682,-393.69097478,0.00018888,2]
[346702585,1735211438693,-2880.03482154,0.00018888,2]
[346702586,1735211438752,-33344.55791003,0.00018888,2]
[346702587,1735211438763,-13074.11610636,0.00018888,2]
[346702588,1735211438773,-220.0,0.000189,2]
[346702589,1735211438783,-4244.47689357,0.000189,2]
[346702590,1735211438795,-5547.74016914,0.000189,2]
[346702591,1735211438824,-7237.2251909,0.000189,2]
[346702592,1735211438835,-7253.1650871,0.000189,2]
[346702593,1735211438846,-8490.05316041,0.000189,2]
[346702594,1735211438891,-1832.74043828,0.000189,2]
[346702599,1735211440397,-456.752905,0.000189,2]
[346702600,1735211440409,-519.65,0.000189,2]
[346702601,1735211440421,-325.655,0.000189,2]
[346702602,1735211440432,-352.91329135,0.000189,2]
[346702603,1735211440444,-957.08025307,0.000189,2]
[346702604,1735211440507,-1239.50863962,0.000189,2]
[346702605,1735211440519,-3456.99788779,0.000189,2]
[346702606,1735211440582,-33704.9999998,0.000189,2]
[346702607,1735211440611,-1910.26160261,0.000189,2]
[346702608,1735211440639,-2477.12432777,0.000189,2]
[346702609,1735211440650,-1863.17026,0.000189,2]
[346702613,1735211440788,-324.22562728,0.000189,2]
[346702638,1735211443206,-455.45500609,0.000189,2]
[346702641,1735211443218,-949.10442,0.000189,2]
[346702656,1735211443360,-1305.019008,0.000189,2]
[346702658,1735211443372,-2634.217918,0.000189,2]
[346702664,1735211443654,-500.0,0.000189,2]
[346702665,1735211443683,-4521.78071461,0.000189,2]
[346702688,1735211446259,-28814.67650278,0.000189,2]
[346702689,1735211446269,-1500.0,0.000189,2]
[346702690,1735211446281,-1000.0,0.000189,2]
[346702691,1735211446293,-2581.22,0.000189,31]
[346702692,1735211446303,-2581.22,0.000189,31]
[346702693,1735211446312,-2581.22,0.000189,31]
[346702694,1735211446322,-2581.22,0.000189,31]
[346702695,1735211446333,-2581.22,0.000189,31]
[346702696,1735211446343,-2581.22,0.000189,31]
[346702697,1735211446352,-608.78620599,0.000189,31]
[346702698,1735211446366,-1972.43379401,0.000189,31]
[346702699,1735211446376,-2581.22,0.000189,31]
[346702700,1735211446385,-2581.22,0.000189,31]
[346702701,1735211446395,-2581.22,0.000189,31]
[346702702,1735211446405,-2581.22,0.000189,31]
[346702703,1735211446414,-2581.22,0.000189,31]
[346702704,1735211446424,-2581.22,0.000189,31]
[346702705,1735211446624,-2581.22,0.000189,31]
[346702706,1735211446635,-2581.22,0.000189,31]
[346702707,1735211446644,-2581.22,0.000189,31]
[346702708,1735211446654,-150.0,0.0001899,2]
[346702709,1735211446664,-7584.32009572,0.00019,2]
[346702710,1735211446673,-30000.0,0.00019,2]
[346702711,1735211446683,-30000.0,0.00019,2]
[346702712,1735211446692,-30000.0,0.00019,2]
[346702713,1735211446703,-30000.0,0.00019,2]
[346702714,1735211446713,-30000.0,0.00019,2]
[346702715,1735211446723,-30000.0,0.00019,2]
[346702716,1735211446733,-30000.0,0.00019,2]
[346702717,1735211446742,-30000.0,0.00019,2]
[346702719,1735211446752,-10000.0,0.00019,2]
[346702720,1735211446763,-21660.4784122,0.00019,5]
[346702721,1735211446773,-85957.57120922,0.00019,60]
[346702722,1735211446782,-3000.0,0.00019,2]
[346702723,1735211446793,-10000.0,0.00019,2]
[346702724,1735211446803,-150.77065,0.00019,2]
[346702725,1735211446812,-600.0,0.00019,2]
[346702726,1735211446822,-3000.0,0.00019,2]
[346702727,1735211446832,-500.0,0.00019,2]
[346702728,1735211446842,-1894.0,0.00019001,2]
[346702729,1735211446852,-804.80653108,0.00019001,2]
[346702730,1735211446862,-16215.40188222,0.0001901,2]
[346702731,1735211446871,-1000.0,0.0001902,2]
[346702732,1735211446882,-152.0,0.00019025,13]
[346702733,1735211446891,-5076.51,0.00019055,7]
[346702734,1735211446901,-5076.51,0.00019055,7]
[346702735,1735211446911,-2551.14341984,0.0001911,2]
[346702736,1735211446921,-579.9,0.00019119,2]
[346702737,1735211446931,-11868.16,0.00019151,2]
[346702738,1735211446940,-500.0,0.00019173,2]
[346702739,1735211446950,-500.0,0.00019173,2]
[346702740,1735211446961,-1628.57769775,0.00019177,2]
[346702741,1735211446970,-18211.1578091,0.00019177,2]
[346702742,1735211446985,-281.28332684,0.00019177,2]
[346702743,1735211447414,-2508.75625,0.00019177,2]
[346702744,1735211447426,-4666.63686072,0.00019177,2]
[346702745,1735211447538,-163059.9999995,0.00019177,2]
[346702746,1735211562548,202.70815295,0.0002,120]
[346702747,1735211570996,1421.76000099,0.0002,120]
[346702755,1735212319759,800.0,9e-05,2]
[346702756,1735212319783,265.22083439,9e-05,2]
[346702757,1735212329134,534.77916561,9e-05,2]
[346702758,1735212329155,800.0,9e-05,2]
[346702759,1735212329176,800.0,9e-05,2]
[346702760,1735212329198,800.0,9e-05,2]
[346702761,1735212329220,800.0,9e-05,2]
[346702762,1735212329242,800.0,9e-05,2]
[346702763,1735212329264,800.0,9e-05,2]
[346702764,1735212329285,800.0,9e-05,2]
[346702765,1735212329307,800.0,9e-05,2]
[346702766,1735212329329,800.0,9e-05,2]
[346702767,1735212329357,13335.5,9e-05,2]
[346702768,1735212329379,10000.0,9e-05,2]
[346702769,1735212329400,10000.0,9e-05,2]
[346702770,1735212329422,10000.0,9e-05,2]
[346702771,1735212329444,10000.0,9e-05,2]
[346702772,1735212329466,10000.0,9e-05,2]
[346702773,1735212329488,10000.0,9e-05,2]
[346702774,1735212329513,1930.99126765,9e-05,2]
[346702828,1735212570189,284.95298853,9.021e-05,2]
[346702843,1735212632780,-173.71,0.00010137,2]
[346702844,1735212632789,-450.0,0.00013,2]
[346702845,1735212632798,-500.0,0.00013394,2]
[346702846,1735212632808,-169.97,0.00013699,2]
[346702848,1735212632817,-5843.426761,0.000149,2]
[346702853,1735212632860,-1000.0,0.000149,2]
[346702854,1735212632871,-746.82209386,0.000149,2]
[346702855,1735212632881,-2677.61914514,0.000149,2]
[346702856,1735212632890,-780.25269099,0.00015,2]
[346702857,1735212632902,-315.56130515,0.00015,2]
[346702858,1735212632938,-7227.18600386,0.00015,2]
[346702859,1735212632947,-500.0,0.00015,2]
[346702860,1735212632957,-200.0,0.000151,2]